[Event "Titled Tuesday Blitz January 18 2022"]
[White "Seemann, Jakub"]
[Black "Savchenko, Boris"]
[WhiteFideId "21874697"]
[BlackFideId "4147332"]
[WhiteElo "2003"]
[BlackElo "2512"]
[Result "1/2-1/2"]
[Round "01"]
[TimeControl "180+1"]
[Date "2022.01.18"]
[WhiteClock "0:00:06"]
[BlackClock "0:00:13"]

1. d4 {[%clk 0:02:58]}  Nf6 {[%clk 0:02:57]} 2. c4 {[%clk 0:02:58]}  g6 {[%clk 0:02:58]} 3. Nc3 {[%clk 0:02:58]}  d5 {[%clk 0:02:58]} 4. Bg5 {[%clk 0:02:55]}  Ne4 {[%clk 0:02:57]} 5. Bf4 {[%clk 0:02:55]}  Nxc3 {[%clk 0:02:55]} 6. bxc3 {[%clk 0:02:56]}  Bg7 {[%clk 0:02:54]} 7. e3 {[%clk 0:02:56]}  c5 {[%clk 0:02:53]} 8. Nf3 {[%clk 0:02:56]}  O-O {[%clk 0:02:52]} 9. cxd5 {[%clk 0:02:56]}  Qxd5 {[%clk 0:02:52]} 10. Be2 {[%clk 0:02:55]}  Bf5 {[%clk 0:02:51]} 11. O-O {[%clk 0:02:55]}  cxd4 {[%clk 0:02:49]} 12. cxd4 {[%clk 0:02:54]}  Be4 {[%clk 0:02:49]} 13. Qb3 {[%clk 0:02:51]}  Nc6 {[%clk 0:02:47]} 14. Rfc1 {[%clk 0:02:45]}  Qxb3 {[%clk 0:02:40]} 15. axb3 {[%clk 0:02:45]}  Rfc8 {[%clk 0:02:40]} 16. Bc4 {[%clk 0:02:37]}  e6 {[%clk 0:02:35]} 17. Nd2 {[%clk 0:02:32]}  Bd5 {[%clk 0:02:29]} 18. Bxd5 {[%clk 0:02:23]}  exd5 {[%clk 0:02:30]} 19. Rc5 {[%clk 0:02:18]}  Rd8 {[%clk 0:02:29]} 20. Rac1 {[%clk 0:02:13]}  Rd7 {[%clk 0:02:25]} 21. b4 {[%clk 0:02:08]}  a6 {[%clk 0:01:46]} 22. Nb3 {[%clk 0:01:52]}  Bf8 {[%clk 0:01:27]} 23. b5 {[%clk 0:01:52]}  Na7 {[%clk 0:01:27]} 24. bxa6 {[%clk 0:01:43]}  bxa6 {[%clk 0:01:25]} 25. Ra5 {[%clk 0:01:30]}  Nb5 {[%clk 0:01:07]} 26. Rca1 {[%clk 0:01:30]}  Rb7 {[%clk 0:01:07]} 27. g3 {[%clk 0:00:34]}  f6 {[%clk 0:00:35]} 28. Rxa6 {[%clk 0:00:24]}  Rxa6 {[%clk 0:00:34]} 29. Rxa6 {[%clk 0:00:25]}  g5 {[%clk 0:00:34]} 30. Na5 {[%clk 0:00:21]}  Rd7 {[%clk 0:00:22]} 31. Bb8 {[%clk 0:00:19]}  Kf7 {[%clk 0:00:22]} 32. Rb6 {[%clk 0:00:18]}  Nc3 {[%clk 0:00:19]} 33. Kg2 {[%clk 0:00:14]}  Be7 {[%clk 0:00:17]} 34. Rb7 {[%clk 0:00:13]}  Rxb7 {[%clk 0:00:17]} 35. Nxb7 {[%clk 0:00:14]}  Ke6 {[%clk 0:00:15]} 36. Ba7 {[%clk 0:00:14]}  Ba3 {[%clk 0:00:13]} 37. Bc5 {[%clk 0:00:12]}  Bb2 {[%clk 0:00:13]} 38. Nd8+ {[%clk 0:00:11]}  Kd7 {[%clk 0:00:13]} 39. Nf7 {[%clk 0:00:10]}  Ne4 {[%clk 0:00:13]} 40. Bb4 {[%clk 0:00:07]}  Ke6 {[%clk 0:00:12]} 41. Nd8+ {[%clk 0:00:07]}  Kd7 {[%clk 0:00:13]} 42. Nb7 {[%clk 0:00:07]}  Kc6 {[%clk 0:00:13]} 43. Nc5 {[%clk 0:00:07]}  Nd6 {[%clk 0:00:09]} 44. Nd3 {[%clk 0:00:07]}  Nc4 {[%clk 0:00:04]} 45. Nxb2 {[%clk 0:00:06]}  Nxb2 {[%clk 0:00:05]} 46. Be7 {[%clk 0:00:06]}  g4 {[%clk 0:00:04]} 47. Bxf6 {[%clk 0:00:06]}  Kd7 {[%clk 0:00:04]} 48. h3 {[%clk 0:00:05]}  h5 {[%clk 0:00:04]} 49. hxg4 {[%clk 0:00:05]}  hxg4 {[%clk 0:00:04]} 50. f3 {[%clk 0:00:06]}  Ke6 {[%clk 0:00:05]} 51. Be5 {[%clk 0:00:06]}  Kf5 {[%clk 0:00:04]} 52. fxg4+ {[%clk 0:00:04]}  Kxg4 {[%clk 0:00:05]} 53. Bf4 {[%clk 0:00:03]}  Nc4 {[%clk 0:00:05]} 54. Kf2 {[%clk 0:00:03]}  Nd2 {[%clk 0:00:06]} 55. Ke2 {[%clk 0:00:03]}  Ne4 {[%clk 0:00:07]} 56. Kd3 {[%clk 0:00:03]}  Kf5 {[%clk 0:00:07]} 57. Kc2 {[%clk 0:00:03]}  Nf2 {[%clk 0:00:07]} 58. Kb3 {[%clk 0:00:03]}  Ke4 {[%clk 0:00:08]} 59. Kc2 {[%clk 0:00:03]}  Ng4 {[%clk 0:00:08]} 60. Kd2 {[%clk 0:00:03]}  Nf6 {[%clk 0:00:09]} 61. Ke2 {[%clk 0:00:03]}  Ng4 {[%clk 0:00:10]} 62. Kd2 {[%clk 0:00:03]}  Nh2 {[%clk 0:00:10]} 63. Ke2 {[%clk 0:00:03]}  Ng4 {[%clk 0:00:10]} 64. Kf1 {[%clk 0:00:04]}  Kf3 {[%clk 0:00:10]} 65. Ke1 {[%clk 0:00:02]}  Nxe3 {[%clk 0:00:10]} 66. Bxe3 {[%clk 0:00:02]}  Kxe3 {[%clk 0:00:11]} 67. g4 {[%clk 0:00:03]}  Kxd4 {[%clk 0:00:11]} 68. Ke2 {[%clk 0:00:04]}  Ke4 {[%clk 0:00:11]} 69. Kd2 {[%clk 0:00:04]}  Kf4 {[%clk 0:00:11]} 70. Kd3 {[%clk 0:00:04]}  Kxg4 {[%clk 0:00:12]} 71. Kd4 {[%clk 0:00:05]}  Kf4 {[%clk 0:00:13]} 72. Kxd5 {[%clk 0:00:06]} 1/2-1/2


[Site "https://www.chess.com"]

[Event "Titled Tuesday Blitz January 18 2022"]
[White "Seo, Jung Min"]
[Black "Spitzl, Vinzent"]
[WhiteFideId "1734687"]
[BlackFideId "12901253"]
[WhiteElo "2401"]
[BlackElo "2160"]
[Result "1-0"]
[Round "01"]
[TimeControl "180+1"]
[Date "2022.01.18"]
[WhiteClock "0:00:18"]
[BlackClock "0:00:02"]

1. e4 {[%clk 0:03:00]}  d5 {[%clk 0:02:57]} 2. exd5 {[%clk 0:03:00]}  Qxd5 {[%clk 0:02:57]} 3. Nc3 {[%clk 0:03:00]}  Qd8 {[%clk 0:02:57]} 4. d4 {[%clk 0:03:00]}  Nf6 {[%clk 0:02:56]} 5. Bc4 {[%clk 0:03:00]}  g6 {[%clk 0:02:56]} 6. Nf3 {[%clk 0:02:57]}  Bg7 {[%clk 0:02:56]} 7. O-O {[%clk 0:02:57]}  O-O {[%clk 0:02:56]} 8. h3 {[%clk 0:02:57]}  a6 {[%clk 0:02:55]} 9. a4 {[%clk 0:02:54]}  Nc6 {[%clk 0:02:56]} 10. Re1 {[%clk 0:02:46]}  b6 {[%clk 0:02:52]} 11. d5 {[%clk 0:02:37]}  Nb4 {[%clk 0:02:29]} 12. Bg5 {[%clk 0:02:29]}  Bb7 {[%clk 0:02:25]} 13. Qe2 {[%clk 0:02:26]}  Nbxd5 {[%clk 0:02:03]} 14. Nxd5 {[%clk 0:02:25]}  Nxd5 {[%clk 0:02:02]} 15. Rad1 {[%clk 0:02:22]}  Qd7 {[%clk 0:01:28]} 16. Bxd5 {[%clk 0:01:46]}  Bxd5 {[%clk 0:01:25]} 17. Qd3 {[%clk 0:01:36]}  Rfd8 {[%clk 0:00:49]} 18. Bxe7 {[%clk 0:01:29]}  Be6 {[%clk 0:00:28]} 19. Bxd8 {[%clk 0:01:28]}  Rxd8 {[%clk 0:00:27]} 20. Qxd7 {[%clk 0:01:27]}  Rxd7 {[%clk 0:00:27]} 21. Rxd7 {[%clk 0:01:25]}  Bxd7 {[%clk 0:00:27]} 22. b3 {[%clk 0:01:25]}  Kf8 {[%clk 0:00:24]} 23. Ne5 {[%clk 0:01:22]}  Be6 {[%clk 0:00:21]} 24. Nd3 {[%clk 0:01:13]}  Bf6 {[%clk 0:00:17]} 25. g4 {[%clk 0:01:12]}  h6 {[%clk 0:00:16]} 26. Nf4 {[%clk 0:01:09]}  Bd7 {[%clk 0:00:13]} 27. Nd5 {[%clk 0:01:08]}  Bd8 {[%clk 0:00:13]} 28. Rd1 {[%clk 0:01:04]}  Ke8 {[%clk 0:00:13]} 29. Rd4 {[%clk 0:01:01]}  c6 {[%clk 0:00:13]} 30. Ne3 {[%clk 0:00:53]}  b5 {[%clk 0:00:12]} 31. axb5 {[%clk 0:00:52]}  axb5 {[%clk 0:00:12]} 32. Nd1 {[%clk 0:00:48]}  Bb6 {[%clk 0:00:12]} 33. Rd2 {[%clk 0:00:47]}  Be6 {[%clk 0:00:10]} 34. Nc3 {[%clk 0:00:44]}  Ba5 {[%clk 0:00:10]} 35. Rd3 {[%clk 0:00:44]}  Bc7 {[%clk 0:00:07]} 36. Ne4 {[%clk 0:00:43]}  Ke7 {[%clk 0:00:07]} 37. Nc5 {[%clk 0:00:42]}  Bc8 {[%clk 0:00:08]} 38. Kg2 {[%clk 0:00:39]}  Bd6 {[%clk 0:00:05]} 39. Ne4 {[%clk 0:00:38]}  Bc7 {[%clk 0:00:05]} 40. f3 {[%clk 0:00:38]}  Be5 {[%clk 0:00:05]} 41. Re3 {[%clk 0:00:36]}  Kf8 {[%clk 0:00:04]} 42. Nc5 {[%clk 0:00:26]}  Bc7 {[%clk 0:00:04]} 43. Nd3 {[%clk 0:00:22]}  Be6 {[%clk 0:00:03]} 44. Ne5 {[%clk 0:00:20]}  Bd5 {[%clk 0:00:03]} 45. c4 {[%clk 0:00:19]}  bxc4 {[%clk 0:00:02]} 46. bxc4 {[%clk 0:00:19]}  Bxe5 {[%clk 0:00:03]} 47. cxd5 {[%clk 0:00:19]}  Bd4 {[%clk 0:00:03]} 48. dxc6 {[%clk 0:00:18]}  Bxe3 {[%clk 0:00:02]} 49. c7 {[%clk 0:00:18]} 1-0


[Site "https://www.chess.com"]

[Event "Titled Tuesday Blitz January 18 2022"]
[White "Sychev, Klementy"]
[Black "Urquhart, Ed"]
[WhiteFideId "4114060"]
[BlackFideId "2603748"]
[WhiteElo "2564"]
[BlackElo "2184"]
[Result "1-0"]
[Round "01"]
[TimeControl "180+1"]
[Date "2022.01.18"]
[WhiteClock "0:00:24"]
[BlackClock "0:00:12"]

1. d4 {[%clk 0:03:00]}  Nf6 {[%clk 0:02:58]} 2. c4 {[%clk 0:03:01]}  e6 {[%clk 0:02:56]} 3. Nc3 {[%clk 0:03:01]}  Bb4 {[%clk 0:02:55]} 4. Bf4 {[%clk 0:03:01]}  d5 {[%clk 0:02:53]} 5. Qa4+ {[%clk 0:03:00]}  Nc6 {[%clk 0:02:52]} 6. e3 {[%clk 0:03:00]}  O-O {[%clk 0:02:49]} 7. Nf3 {[%clk 0:02:27]}  Bd7 {[%clk 0:02:49]} 8. Qb3 {[%clk 0:02:23]}  Bxc3+ {[%clk 0:02:14]} 9. Qxc3 {[%clk 0:02:22]}  Ne4 {[%clk 0:02:12]} 10. Qc2 {[%clk 0:02:21]}  f5 {[%clk 0:02:08]} 11. cxd5 {[%clk 0:02:17]}  exd5 {[%clk 0:02:09]} 12. Qb3 {[%clk 0:02:17]}  Be6 {[%clk 0:02:03]} 13. h4 {[%clk 0:02:09]}  Qd7 {[%clk 0:01:49]} 14. Bb5 {[%clk 0:02:03]}  a6 {[%clk 0:01:48]} 15. Ne5 {[%clk 0:02:01]}  Qe8 {[%clk 0:01:43]} 16. Bxc6 {[%clk 0:02:00]}  bxc6 {[%clk 0:01:43]} 17. Qc2 {[%clk 0:01:55]}  c5 {[%clk 0:01:17]} 18. f3 {[%clk 0:01:48]}  Nf6 {[%clk 0:01:06]} 19. Qxc5 {[%clk 0:01:47]}  Rb8 {[%clk 0:00:54]} 20. b3 {[%clk 0:01:47]}  Nh5 {[%clk 0:00:47]} 21. O-O {[%clk 0:01:32]}  Nxf4 {[%clk 0:00:46]} 22. exf4 {[%clk 0:01:33]}  Rb5 {[%clk 0:00:35]} 23. Qxc7 {[%clk 0:01:30]}  Qh5 {[%clk 0:00:32]} 24. Qc6 {[%clk 0:01:23]}  Bf7 {[%clk 0:00:28]} 25. Rac1 {[%clk 0:01:16]}  Qxh4 {[%clk 0:00:22]} 26. Nxf7 {[%clk 0:00:49]}  Rxf7 {[%clk 0:00:21]} 27. Qe6 {[%clk 0:00:48]}  Rb8 {[%clk 0:00:17]} 28. Rc7 {[%clk 0:00:46]}  Rf8 {[%clk 0:00:16]} 29. Rxf7 {[%clk 0:00:46]}  Rxf7 {[%clk 0:00:16]} 30. Rc1 {[%clk 0:00:47]}  g6 {[%clk 0:00:17]} 31. Rc7 {[%clk 0:00:37]}  Qf6 {[%clk 0:00:15]} 32. Qxf7+ {[%clk 0:00:32]}  Qxf7 {[%clk 0:00:16]} 33. Rxf7 {[%clk 0:00:32]}  Kxf7 {[%clk 0:00:17]} 34. b4 {[%clk 0:00:27]}  Ke6 {[%clk 0:00:17]} 35. g4 {[%clk 0:00:26]}  h6 {[%clk 0:00:15]} 36. a4 {[%clk 0:00:26]}  Kd6 {[%clk 0:00:13]} 37. gxf5 {[%clk 0:00:24]}  gxf5 {[%clk 0:00:12]} 38. Kg2 {[%clk 0:00:24]} 1-0


[Site "https://www.chess.com"]

[Event "Titled Tuesday Blitz January 18 2022"]
[White "Tania, Sachdev"]
[Black "Muradli, Mahammad"]
[WhiteFideId "5007844"]
[BlackFideId "13409301"]
[WhiteElo "2280"]
[BlackElo "2645"]
[Result "0-1"]
[Round "01"]
[TimeControl "180+1"]
[Date "2022.01.18"]
[WhiteClock "0:00:11"]
[BlackClock "0:01:40"]

1. d4 {[%clk 0:03:00]}  d6 {[%clk 0:02:51]} 2. c4 {[%clk 0:03:00]}  g6 {[%clk 0:02:51]} 3. Nc3 {[%clk 0:02:58]}  Bg7 {[%clk 0:02:51]} 4. e4 {[%clk 0:02:54]}  Nf6 {[%clk 0:02:45]} 5. f3 {[%clk 0:02:53]}  O-O {[%clk 0:02:40]} 6. Nge2 {[%clk 0:02:53]}  e5 {[%clk 0:02:40]} 7. Be3 {[%clk 0:02:53]}  exd4 {[%clk 0:02:38]} 8. Nxd4 {[%clk 0:02:52]}  c6 {[%clk 0:02:38]} 9. Qd2 {[%clk 0:02:50]}  Re8 {[%clk 0:02:33]} 10. Be2 {[%clk 0:02:42]}  d5 {[%clk 0:02:32]} 11. cxd5 {[%clk 0:02:28]}  cxd5 {[%clk 0:02:33]} 12. exd5 {[%clk 0:02:23]}  Nxd5 {[%clk 0:02:29]} 13. Bf2 {[%clk 0:01:59]}  Nc6 {[%clk 0:02:12]} 14. Nxd5 {[%clk 0:00:43]}  Qxd5 {[%clk 0:01:59]} 15. Nb3 {[%clk 0:00:42]}  Qxd2+ {[%clk 0:01:43]} 16. Kxd2 {[%clk 0:00:42]}  Bf5 {[%clk 0:01:41]} 17. Rhd1 {[%clk 0:00:11]}  Bxb2 {[%clk 0:01:40]} 0-1


[Site "https://www.chess.com"]

[Event "Titled Tuesday Blitz January 18 2022"]
[White "Tsvetkov, Andrey"]
[Black "Gheorghiu, Calin"]
[WhiteFideId "34139360"]
[BlackFideId "1200305"]
[WhiteElo "2280"]
[BlackElo "2168"]
[Result "1-0"]
[Round "01"]
[TimeControl "180+1"]
[Date "2022.01.18"]
[WhiteClock "0:01:23"]
[BlackClock "0:00:20"]

1. d4 {[%clk 0:03:00]}  Nf6 {[%clk 0:02:58]} 2. c4 {[%clk 0:03:01]}  g6 {[%clk 0:02:55]} 3. Nc3 {[%clk 0:03:01]}  d5 {[%clk 0:02:55]} 4. Nf3 {[%clk 0:03:02]}  Bg7 {[%clk 0:02:55]} 5. h4 {[%clk 0:03:03]}  h6 {[%clk 0:02:53]} 6. cxd5 {[%clk 0:03:01]}  Nxd5 {[%clk 0:02:53]} 7. e4 {[%clk 0:03:02]}  Nxc3 {[%clk 0:02:52]} 8. bxc3 {[%clk 0:03:03]}  c5 {[%clk 0:02:53]} 9. Rb1 {[%clk 0:03:03]}  cxd4 {[%clk 0:02:50]} 10. cxd4 {[%clk 0:03:04]}  O-O {[%clk 0:02:48]} 11. Be2 {[%clk 0:03:03]}  Nc6 {[%clk 0:02:46]} 12. d5 {[%clk 0:03:03]}  Na5 {[%clk 0:02:46]} 13. O-O {[%clk 0:02:48]}  Bg4 {[%clk 0:02:45]} 14. Bf4 {[%clk 0:02:45]}  b6 {[%clk 0:02:39]} 15. Qd2 {[%clk 0:02:42]}  Qd7 {[%clk 0:02:32]} 16. Bxh6 {[%clk 0:02:39]}  Bxf3 {[%clk 0:02:20]} 17. Bxf3 {[%clk 0:02:03]}  Nc4 {[%clk 0:02:19]} 18. Qc1 {[%clk 0:02:00]}  Rac8 {[%clk 0:02:09]} 19. Bxg7 {[%clk 0:02:00]}  Kxg7 {[%clk 0:02:08]} 20. h5 {[%clk 0:02:01]}  Rh8 {[%clk 0:02:06]} 21. hxg6 {[%clk 0:01:58]}  f6 {[%clk 0:02:06]} 22. Qf4 {[%clk 0:01:52]}  Rh6 {[%clk 0:02:02]} 23. Bg4 {[%clk 0:01:45]}  Qe8 {[%clk 0:01:34]} 24. Bxc8 {[%clk 0:01:43]}  Qh8 {[%clk 0:01:32]} 25. Bh3 {[%clk 0:01:42]}  Ne5 {[%clk 0:01:24]} 26. Qe3 {[%clk 0:01:31]}  Rxg6 {[%clk 0:01:16]} 27. f4 {[%clk 0:01:29]}  Nc4 {[%clk 0:01:13]} 28. Qc3 {[%clk 0:01:26]}  Nd6 {[%clk 0:00:56]} 29. e5 {[%clk 0:01:23]}  Ne4 {[%clk 0:00:51]} 30. exf6+ {[%clk 0:01:24]}  Rxf6 {[%clk 0:00:28]} 31. Qe5 {[%clk 0:01:22]}  Nd2 {[%clk 0:00:24]} 32. Qxe7+ {[%clk 0:01:22]}  Kg6 {[%clk 0:00:22]} 33. f5+ {[%clk 0:01:22]}  Kh5 {[%clk 0:00:20]} 34. Qe2+ {[%clk 0:01:23]} 1-0


[Site "https://www.chess.com"]

[Event "Titled Tuesday Blitz January 18 2022"]
[White "Van der Werf, Mark"]
[Black "Krivonosov, Oleg"]
[WhiteFideId "1000470"]
[BlackFideId "11600349"]
[WhiteElo "2398"]
[BlackElo "2455"]
[Result "1/2-1/2"]
[Round "01"]
[TimeControl "180+1"]
[Date "2022.01.18"]
[WhiteClock "0:00:26"]
[BlackClock "0:00:31"]

1. c4 {[%clk 0:02:59]}  e6 {[%clk 0:02:59]} 2. Nc3 {[%clk 0:02:58]}  d5 {[%clk 0:02:59]} 3. d4 {[%clk 0:02:58]}  Be7 {[%clk 0:02:57]} 4. cxd5 {[%clk 0:02:56]}  exd5 {[%clk 0:02:56]} 5. Bf4 {[%clk 0:02:56]}  Nf6 {[%clk 0:02:54]} 6. e3 {[%clk 0:02:44]}  O-O {[%clk 0:02:54]} 7. Bd3 {[%clk 0:02:44]}  c5 {[%clk 0:02:54]} 8. dxc5 {[%clk 0:02:41]}  Bxc5 {[%clk 0:02:55]} 9. Nge2 {[%clk 0:02:37]}  Nc6 {[%clk 0:02:54]} 10. O-O {[%clk 0:02:37]}  d4 {[%clk 0:02:54]} 11. exd4 {[%clk 0:02:34]}  Nxd4 {[%clk 0:02:53]} 12. Nxd4 {[%clk 0:02:32]}  Qxd4 {[%clk 0:02:52]} 13. Be3 {[%clk 0:02:30]}  Qe5 {[%clk 0:02:52]} 14. Bxc5 {[%clk 0:02:28]}  Qxc5 {[%clk 0:02:53]} 15. Ne4 {[%clk 0:02:26]}  Nxe4 {[%clk 0:02:51]} 16. Bxe4 {[%clk 0:02:26]}  Be6 {[%clk 0:02:49]} 17. Bxb7 {[%clk 0:02:15]}  Rab8 {[%clk 0:02:48]} 18. Bf3 {[%clk 0:02:07]}  Rxb2 {[%clk 0:02:44]} 19. Qc1 {[%clk 0:02:00]}  Qxc1 {[%clk 0:02:41]} 20. Rfxc1 {[%clk 0:01:56]}  Rfb8 {[%clk 0:02:33]} 21. a4 {[%clk 0:01:55]}  a5 {[%clk 0:02:32]} 22. h3 {[%clk 0:01:49]}  g6 {[%clk 0:01:58]} 23. Rc5 {[%clk 0:01:48]}  Rd8 {[%clk 0:01:58]} 24. Rxa5 {[%clk 0:01:42]}  Rdd2 {[%clk 0:01:58]} 25. Rb5 {[%clk 0:01:34]}  Rxb5 {[%clk 0:01:44]} 26. axb5 {[%clk 0:01:33]}  Rb2 {[%clk 0:01:44]} 27. Bc6 {[%clk 0:01:30]}  Bc4 {[%clk 0:01:42]} 28. Ra8+ {[%clk 0:01:23]}  Kg7 {[%clk 0:01:42]} 29. Rb8 {[%clk 0:01:21]}  Rb3 {[%clk 0:01:25]} 30. b6 {[%clk 0:01:21]}  Kf6 {[%clk 0:01:24]} 31. b7 {[%clk 0:01:19]}  Ba6 {[%clk 0:01:24]} 32. Ra8 {[%clk 0:01:11]}  Bxb7 {[%clk 0:01:23]} 33. Rb8 {[%clk 0:01:08]}  Bxc6 {[%clk 0:01:20]} 34. Rxb3 {[%clk 0:01:07]}  Bd5 {[%clk 0:01:20]} 35. Rb6+ {[%clk 0:01:05]}  Kg7 {[%clk 0:01:19]} 36. f4 {[%clk 0:01:03]}  h5 {[%clk 0:01:18]} 37. h4 {[%clk 0:01:01]}  Be4 {[%clk 0:01:16]} 38. Kf2 {[%clk 0:01:00]}  Bd5 {[%clk 0:01:16]} 39. g3 {[%clk 0:01:00]}  Be4 {[%clk 0:01:14]} 40. Ke3 {[%clk 0:01:00]}  Bd5 {[%clk 0:01:13]} 41. Kd4 {[%clk 0:01:00]}  Ba2 {[%clk 0:01:13]} 42. Ke5 {[%clk 0:00:58]}  Bc4 {[%clk 0:01:11]} 43. f5 {[%clk 0:00:58]}  gxf5 {[%clk 0:01:09]} 44. Kxf5 {[%clk 0:00:56]}  Be2 {[%clk 0:01:08]} 45. Kg5 {[%clk 0:00:53]}  Bg4 {[%clk 0:01:05]} 46. Rh6 {[%clk 0:00:48]}  Be2 {[%clk 0:01:04]} 47. Rf6 {[%clk 0:00:46]}  Bd1 {[%clk 0:01:02]} 48. Rf4 {[%clk 0:00:46]}  Be2 {[%clk 0:01:01]} 49. Re4 {[%clk 0:00:42]}  Bd1 {[%clk 0:01:00]} 50. Kf4 {[%clk 0:00:41]}  Bg4 {[%clk 0:00:59]} 51. Re5 {[%clk 0:00:39]}  Bd1 {[%clk 0:00:55]} 52. Rg5+ {[%clk 0:00:36]}  Kf6 {[%clk 0:00:52]} 53. Rd5 {[%clk 0:00:35]}  Be2 {[%clk 0:00:52]} 54. Rd8 {[%clk 0:00:33]}  Bg4 {[%clk 0:00:50]} 55. Rg8 {[%clk 0:00:31]}  Be2 {[%clk 0:00:49]} 56. Rg5 {[%clk 0:00:30]}  Bd1 {[%clk 0:00:46]} 57. Rd5 {[%clk 0:00:29]}  Be2 {[%clk 0:00:45]} 58. Rd6+ {[%clk 0:00:29]}  Kg7 {[%clk 0:00:44]} 59. Ke5 {[%clk 0:00:29]}  Bg4 {[%clk 0:00:42]} 60. Rd4 {[%clk 0:00:28]}  Bf3 {[%clk 0:00:40]} 61. Rf4 {[%clk 0:00:26]}  Bd1 {[%clk 0:00:32]} 62. Rf2 {[%clk 0:00:26]}  Bg4 {[%clk 0:00:31]} 1/2-1/2


[Site "https://www.chess.com"]

[Event "Titled Tuesday Blitz January 18 2022"]
[White "Willow, Jonah B"]
[Black "Pajeken, Jakob Leon"]
[WhiteFideId "438804"]
[BlackFideId "12942839"]
[WhiteElo "2261"]
[BlackElo "2351"]
[Result "1-0"]
[Round "01"]
[TimeControl "180+1"]
[Date "2022.01.18"]
[WhiteClock "0:00:34"]
[BlackClock "0:00:14"]

1. e4 {[%clk 0:03:00]}  e5 {[%clk 0:02:59]} 2. Nf3 {[%clk 0:03:01]}  Nc6 {[%clk 0:02:59]} 3. Nc3 {[%clk 0:03:01]}  Nf6 {[%clk 0:02:59]} 4. Bb5 {[%clk 0:03:01]}  Bd6 {[%clk 0:02:58]} 5. d3 {[%clk 0:02:59]}  a6 {[%clk 0:02:57]} 6. Ba4 {[%clk 0:02:58]}  b5 {[%clk 0:02:57]} 7. Bb3 {[%clk 0:02:58]}  Na5 {[%clk 0:02:54]} 8. O-O {[%clk 0:02:41]}  O-O {[%clk 0:02:52]} 9. Bg5 {[%clk 0:02:40]}  h6 {[%clk 0:02:41]} 10. Bh4 {[%clk 0:02:39]}  Bb7 {[%clk 0:02:30]} 11. d4 {[%clk 0:02:34]}  Nxb3 {[%clk 0:02:24]} 12. axb3 {[%clk 0:02:31]}  exd4 {[%clk 0:02:18]} 13. Qxd4 {[%clk 0:02:27]}  Be7 {[%clk 0:02:02]} 14. Rad1 {[%clk 0:02:02]}  Nxe4 {[%clk 0:01:37]} 15. Bxe7 {[%clk 0:01:38]}  Qxe7 {[%clk 0:01:38]} 16. Rfe1 {[%clk 0:01:38]}  d5 {[%clk 0:01:15]} 17. Nxd5 {[%clk 0:01:32]}  Bxd5 {[%clk 0:01:15]} 18. Qxd5 {[%clk 0:01:33]}  Rad8 {[%clk 0:01:14]} 19. Qc6 {[%clk 0:01:31]}  Rxd1 {[%clk 0:01:06]} 20. Rxd1 {[%clk 0:01:32]}  Re8 {[%clk 0:00:45]} 21. Re1 {[%clk 0:01:28]}  Kf8 {[%clk 0:00:40]} 22. Qxa6 {[%clk 0:00:55]}  Qc5 {[%clk 0:00:38]} 23. Re2 {[%clk 0:00:55]}  Qd5 {[%clk 0:00:29]} 24. Qa1 {[%clk 0:00:52]}  f5 {[%clk 0:00:24]} 25. Qe1 {[%clk 0:00:51]}  Ra8 {[%clk 0:00:23]} 26. h3 {[%clk 0:00:42]}  Ra2 {[%clk 0:00:21]} 27. Nd2 {[%clk 0:00:40]}  Rxb2 {[%clk 0:00:19]} 28. Nxe4 {[%clk 0:00:40]}  fxe4 {[%clk 0:00:20]} 29. Rxe4 {[%clk 0:00:41]}  Rxc2 {[%clk 0:00:18]} 30. Rf4+ {[%clk 0:00:39]}  Kg8 {[%clk 0:00:18]} 31. Qe8+ {[%clk 0:00:39]}  Kh7 {[%clk 0:00:18]} 32. Rf8 {[%clk 0:00:37]}  Qd1+ {[%clk 0:00:16]} 33. Kh2 {[%clk 0:00:37]}  Qd6+ {[%clk 0:00:16]} 34. g3 {[%clk 0:00:37]}  g5 {[%clk 0:00:14]} 35. Qf7# {[%clk 0:00:34]} 1-0


[Site "https://www.chess.com"]

[Event "Titled Tuesday Blitz January 18 2022"]
[White "Zhigalko, Sergei"]
[Black "Pires, Marcos Vinicius Torsani"]
[WhiteFideId "13502956"]
[BlackFideId "2118939"]
[WhiteElo "2662"]
[BlackElo "2273"]
[Result "1-0"]
[Round "01"]
[TimeControl "180+1"]
[Date "2022.01.18"]
[WhiteClock "0:00:18"]
[BlackClock "0:00:02"]

1. e4 {[%clk 0:02:59]}  c6 {[%clk 0:03:00]} 2. d4 {[%clk 0:02:58]}  d5 {[%clk 0:03:01]} 3. e5 {[%clk 0:02:59]}  Bf5 {[%clk 0:03:01]} 4. Nf3 {[%clk 0:02:59]}  e6 {[%clk 0:03:01]} 5. Be2 {[%clk 0:02:59]}  Ne7 {[%clk 0:03:02]} 6. O-O {[%clk 0:02:59]}  Nd7 {[%clk 0:03:02]} 7. Nbd2 {[%clk 0:03:00]}  Bg6 {[%clk 0:03:02]} 8. Nh4 {[%clk 0:02:59]}  Nf5 {[%clk 0:03:01]} 9. Nxg6 {[%clk 0:02:59]}  hxg6 {[%clk 0:03:01]} 10. Nf3 {[%clk 0:03:00]}  Nh4 {[%clk 0:02:50]} 11. Ne1 {[%clk 0:02:59]}  c5 {[%clk 0:02:48]} 12. c3 {[%clk 0:02:59]}  Nb8 {[%clk 0:02:46]} 13. g3 {[%clk 0:02:56]}  Nf5 {[%clk 0:02:44]} 14. Nf3 {[%clk 0:02:56]}  Nc6 {[%clk 0:02:44]} 15. dxc5 {[%clk 0:02:46]}  Bxc5 {[%clk 0:02:42]} 16. Kg2 {[%clk 0:02:46]}  a6 {[%clk 0:02:39]} 17. Bf4 {[%clk 0:02:43]}  Rc8 {[%clk 0:02:39]} 18. Qd2 {[%clk 0:02:42]}  Qd7 {[%clk 0:02:14]} 19. Rad1 {[%clk 0:02:40]}  O-O {[%clk 0:02:06]} 20. Bd3 {[%clk 0:02:29]}  b5 {[%clk 0:02:03]} 21. Rfe1 {[%clk 0:02:15]}  Bb6 {[%clk 0:01:53]} 22. Qe2 {[%clk 0:02:02]}  Na5 {[%clk 0:01:49]} 23. g4 {[%clk 0:02:00]}  Ne7 {[%clk 0:01:46]} 24. Ng5 {[%clk 0:01:59]}  Nec6 {[%clk 0:01:24]} 25. Qf3 {[%clk 0:01:44]}  Bd8 {[%clk 0:01:24]} 26. h4 {[%clk 0:01:39]}  Nc4 {[%clk 0:01:01]} 27. Re2 {[%clk 0:01:39]}  Be7 {[%clk 0:00:52]} 28. Qh3 {[%clk 0:01:22]}  Qc7 {[%clk 0:00:41]} 29. h5 {[%clk 0:01:08]}  Bxg5 {[%clk 0:00:38]} 30. Bxg5 {[%clk 0:01:02]}  N4xe5 {[%clk 0:00:20]} 31. Bf4 {[%clk 0:00:58]}  g5 {[%clk 0:00:11]} 32. Bh2 {[%clk 0:00:57]}  f6 {[%clk 0:00:10]} 33. h6 {[%clk 0:00:53]}  Kf7 {[%clk 0:00:10]} 34. hxg7 {[%clk 0:00:50]}  Rg8 {[%clk 0:00:08]} 35. Qh5+ {[%clk 0:00:45]}  Ke7 {[%clk 0:00:08]} 36. Qh7 {[%clk 0:00:41]}  Qd8 {[%clk 0:00:04]} 37. Bg6 {[%clk 0:00:24]}  Nxg6 {[%clk 0:00:04]} 38. Qxg6 {[%clk 0:00:25]}  Qe8 {[%clk 0:00:05]} 39. Rxe6+ {[%clk 0:00:21]}  Kxe6 {[%clk 0:00:06]} 40. Re1+ {[%clk 0:00:21]}  Ne5 {[%clk 0:00:06]} 41. Rxe5+ {[%clk 0:00:22]}  Kd7 {[%clk 0:00:01]} 42. Rxe8 {[%clk 0:00:20]}  Rcxe8 {[%clk 0:00:02]} 43. Qf7+ {[%clk 0:00:19]}  Kd8 {[%clk 0:00:02]} 44. Qc7# {[%clk 0:00:18]} 1-0


[Site "https://www.chess.com"]